bitfinex-derivatives/quotes_ETHF0:USTF0_20241230
["timestamp","ask_amount","ask_price","bid_price","bid_amount"]
[1735517085402,0.29834,3358.0,3357.8,2.89857878]
[1735517085597,8.2078,3358.7,3357.8,2.89857878]
[1735517085900,0.29834,3358.0,3357.8,2.89857878]
[1735517086195,3.50607,3358.7,3357.9,0.74587]
[1735517086403,0.4319,3358.8,3358.7,0.29827]
[1735517086593,0.4319,3358.8,3358.5,2.89857878]
[1735517086898,0.4319,3358.8,3358.7,0.29827]
[1735517087096,0.4319,3358.8,3358.7,41.09827]
[1735517087293,0.73016,3358.8,3358.7,40.8]
[1735517087495,0.4319,3358.8,3358.7,40.8]
[1735517087695,0.73016,3358.8,3358.7,40.8]
[1735517088100,0.73016,3358.8,3358.5,6.40466878]
[1735517088101,0.4319,3358.8,3358.5,6.40466878]
[1735517088306,0.29827,3358.7,3358.5,6.40466878]
[1735517088512,0.29828,3358.6,3358.5,2.89857878]
[1735517088709,0.29828,3358.6,3358.5,43.69857878]
[1735517089513,0.29832,3358.2,3358.1,6.10637878]
[1735517089815,0.29832,3358.2,3358.1,46.90637878]
[1735517090007,0.29832,3358.2,3358.1,43.69857878]
[1735517090407,0.29832,3358.2,3358.1,2.89857878]
[1735517091712,0.4486,3358.6,3357.7,43.69857878]
[1735517091907,3.2078,3358.3,3357.6,3.2078]
[1735517092107,0.29836,3357.7,3357.6,3.2078]
[1735517092310,0.29836,3357.7,3357.6,44.0078]
[1735517092702,3.2078,3357.7,3357.1,2.89857878]
[1735517092911,0.2984,3357.3,3357.1,3.19698878]
[1735517093707,0.29841,3357.1,3357.0,3.2078]
[1735517099412,0.29845,3356.7,3356.6,3.2078]
[1735517102611,3.2078,3357.2,3356.6,3.2078]
[1735517102815,3.2078,3357.7,3357.0,6.10637878]
[1735517103122,3.2078,3357.7,3357.4,3.19695878]
[1735517103418,3.2078,3357.7,3357.5,41.09838]
[1735517103812,3.2078,3358.1,3357.5,40.8]
[1735517104015,0.29837,3357.6,3357.5,40.8]
[1735517105116,0.29838,3357.5,3357.4,2.89857878]
[1735517105322,3.2078,3358.1,3357.4,2.89857878]
[1735517105522,0.29836,3357.8,3357.5,41.09837]
[1735517105821,3.2078,3358.1,3357.5,40.8]
[1735517106022,0.29837,3357.7,3357.5,40.8]
[1735517106523,3.2078,3358.1,3357.5,40.8]
[1735517106925,0.29836,3357.7,3357.5,41.09838]
[1735517107111,3.2078,3358.1,3357.6,0.29837]
[1735517107516,3.2078,3358.1,3357.5,40.8]
[1735517107711,3.50617,3357.6,3357.5,40.8]
[1735517107923,0.29838,3357.5,3357.4,2.89857878]
[1735517111323,0.72978,3357.5,3357.4,2.89857878]
[1735517113219,0.4314,3357.5,3357.0,46.90637878]
[1735517113426,0.4314,3357.5,3357.0,2.89857878]
[1735517113427,0.29841,3357.1,3357.0,2.89857878]
[1735517113625,0.29845,3356.7,3356.6,3.2078]
[1735517116723,0.29845,3356.7,3356.6,2.5102]
[1735517117420,0.29844,3356.9,3356.6,5.70722878]
[1735517117821,0.29845,3356.8,3356.6,5.40877878]
[1735517118221,0.29845,3356.8,3356.6,5.70723878]
[1735517118529,0.4427,3357.0,3356.6,5.40877878]
[1735517118827,0.29845,3356.7,3356.6,2.5102]
[1735517120821,0.4427,3357.0,3356.6,2.5102]
[1735517121018,0.29843,3357.0,3356.8,0.29844]
[1735517121224,3.2078,3357.2,3356.7,0.29845]
[1735517121524,0.29844,3356.9,3356.7,0.29845]
[1735517121824,3.2078,3357.2,3356.6,5.40877878]
[1735517122125,7.03093685,3358.7,3357.6,0.29837]
[1735517122126,6.69827312,3357.8,3357.6,0.29837]
[1735517122426,6.69827312,3357.8,3357.7,0.29837]
[1735517123230,3.2078,3357.8,3357.7,0.29837]
[1735517125528,3.2078,3357.8,3357.6,3.19694878]
[1735517125529,0.29837,3357.7,3357.6,3.19694878]
[1735517125729,3.50616,3357.8,3357.6,2.89857878]
[1735517125930,3.50616,3357.8,3357.7,0.29837]
[1735517126228,0.29837,3357.7,3357.6,2.89857878]
[1735517126832,3.2078,3357.8,3357.7,0.29837]
[1735517128921,3.2078,3358.3,3357.6,2.89857878]
[1735517129125,3.2078,3358.3,3358.2,0.29832]
[1735517129324,4.84497312,3358.6,3358.5,0.2983]
[1735517129325,3.49047312,3358.6,3358.5,0.2983]
[1735517129531,3.49047312,3358.6,3358.5,3.19687878]
[1735517129736,3.49047312,3358.6,3358.5,43.99687878]
[1735517130430,0.29827,3358.9,3358.6,0.29828]
[1735517130827,3.2078,3359.2,3358.8,0.29827]
[1735517131024,0.29825,3359.1,3358.6,0.29829]
[1735517131223,0.29825,3359.1,3358.8,0.29826]
[1735517131224,0.29824,3359.1,3358.8,0.29826]
[1735517131631,0.29824,3359.1,3358.9,0.29826]
[1735517131824,0.29826,3359.0,3358.7,0.29827]
[1735517132027,0.29826,3359.0,3358.5,43.69857878]
[1735517132231,0.29826,3359.0,3358.8,0.29827]
[1735517132436,0.29825,3359.1,3358.9,0.29826]
[1735517133734,3.2078,3359.2,3358.5,43.69857878]
[1735517134037,0.29826,3359.0,3358.7,0.29827]
[1735517134241,0.29825,3359.1,3358.9,0.29826]
[1735517134433,3.2078,3359.2,3358.5,2.89857878]
[1735517134634,3.50604,3359.2,3359.0,0.29825]
[1735517134937,3.2078,3359.2,3359.1,0.29824]
[1735517135939,3.50604,3359.2,3359.0,0.29825]
[1735517136239,3.50604,3359.2,3359.0,2.25124281]
[1735517136440,3.50604,3359.2,3359.1,0.29824]
[1735517136641,3.50604,3359.2,3359.0,2.54949281]
[1735517136837,3.2078,3359.2,3358.7,2.75124281]
[1735517137142,0.29827,3358.8,3358.7,0.5]
[1735517137330,3.2078,3359.2,3358.7,0.5]
[1735517137534,3.50604,3359.2,3359.1,0.29824]
[1735517137732,3.2078,3359.2,3359.1,0.29824]
[1735517138434,4.0767,3359.7,3359.0,2.25124281]
[1735517138640,4.3749,3359.7,3359.5,2.54944281]
[1735517139038,0.2982,3359.6,3359.5,0.2982]
[1735517139333,4.0767,3359.7,3359.2,2.25124281]
[1735517139532,0.2982,3359.6,3359.4,0.29821]
[1735517139732,0.2982,3359.6,3359.3,0.29823]
[1735517139939,4.0767,3359.7,3359.5,2.25124281]
[1735517140133,3.2078,3359.7,3359.6,0.2982]
[1735517140335,6.69827312,3360.2,3359.5,2.25124281]
[1735517140631,0.29816,3360.1,3359.9,2.54941281]
[1735517141046,0.29816,3360.0,3359.9,2.54941281]
[1735517141339,0.2982,3359.6,3359.4,0.29821]
[1735517141536,0.4581,3359.5,3359.4,0.29821]
[1735517141741,3.2078,3359.7,3359.5,0.29821]
[1735517141942,3.506,3359.7,3359.5,0.29821]
[1735517142242,3.506,3359.7,3359.3,2.75124281]
[1735517142541,3.506,3359.7,3359.6,2.25124281]
[1735517143845,3.506,3359.7,3359.3,0.79822]
[1735517143846,0.29822,3359.4,3359.3,2.75124281]
[1735517144141,0.4644,3359.6,3359.0,2.25124281]
[1735517144342,0.29825,3359.0,3358.9,3.2078]
[1735517144846,0.2983,3358.5,3358.4,2.25124281]
[1735517148243,0.2983,3358.5,3358.3,3.50611]
[1735517148943,0.4207,3358.8,3358.3,3.50611]
[1735517149138,0.4207,3358.8,3358.2,2.89978435]
[1735517149139,3.2078,3358.7,3358.2,2.89978435]
[1735517149443,3.2078,3358.7,3358.4,0.2983]
[1735517149444,0.2983,3358.6,3358.4,0.2983]
[1735517149631,0.2983,3358.5,3358.2,2.89978435]
[1735517149839,0.2983,3358.5,3358.3,0.29831]
[1735517150646,0.29832,3358.3,3358.2,2.89978435]
[1735517151035,3.2078,3358.3,3357.8,2.89978435]
[1735517151342,0.29835,3357.9,3357.8,3.19814435]
[1735517151638,0.29835,3357.9,3357.8,2.89978435]
[1735517151837,0.29835,3357.9,3357.8,43.99814435]
[1735517152236,0.29835,3357.9,3357.8,2.89978435]
[1735517152443,0.29838,3357.7,3357.5,3.50618]
[1735517152643,0.8928,3358.2,3357.6,0.29838]
[1735517152644,0.29837,3357.8,3357.6,0.29838]
[1735517152944,0.8928,3358.2,3357.6,0.29838]
[1735517153739,0.29837,3357.8,3357.6,0.29838]
[1735517154045,0.29837,3357.7,3357.5,0.29838]
[1735517154241,0.29837,3357.8,3357.6,0.29838]
[1735517155249,0.29837,3357.7,3357.6,0.29838]
[1735517155449,0.29836,3357.8,3357.6,0.29838]
[1735517155951,0.29837,3357.7,3357.4,6.10758435]
[1735517156248,0.29837,3357.7,3357.5,0.29839]
[1735517156448,0.29837,3357.8,3357.6,0.29837]
[1735517157841,0.29837,3357.7,3357.4,6.10758435]
[1735517158048,0.29838,3357.7,3357.5,0.29838]
[1735517158553,3.2078,3357.9,3357.4,6.10758435]
[1735517158853,0.29838,3357.7,3357.5,0.29839]
[1735517160054,0.29838,3357.6,3357.4,6.40597435]
[1735517160249,3.2078,3357.9,3357.5,0.29839]
[1735517160456,0.29838,3357.7,3357.5,0.29838]
[1735517161057,0.29838,3357.7,3357.4,6.10758435]
[1735517161258,0.29838,3357.7,3357.5,0.29839]
[1735517162052,0.29838,3357.7,3357.6,0.29838]
[1735517162361,3.50612,3358.3,3358.2,0.29832]
[1735517162551,3.50612,3358.3,3358.2,2.89978435]
[1735517162856,0.29835,3357.9,3357.8,2.89978435]
[1735517163451,3.2078,3357.9,3357.4,3.2078]
[1735517163650,0.29839,3357.5,3357.4,3.2078]
[1735517163854,0.2984,3357.4,3357.3,4.57643636]
[1735517164057,1.17,3357.4,3357.3,4.57643636]
[1735517165152,0.29842,3357.1,3357.0,43.69978435]
[1735517166864,0.29842,3357.1,3357.0,40.8]
[1735517167063,0.29846,3356.7,3356.6,3.19824435]
[1735517167269,0.29846,3356.7,3356.6,2.89978435]
[1735517167471,0.29845,3356.8,3356.6,43.99824435]
[1735517167961,0.29845,3356.8,3356.6,3.19824435]
[1735517168265,0.29845,3356.8,3356.7,2.25419577]
[1735517168468,0.29848,3356.5,3356.4,2.25419577]
[1735517171063,0.2985,3356.2,3356.1,2.25419577]
[1735517171667,0.4488,3356.4,3355.8,43.05419577]
[1735517171668,0.29853,3355.9,3355.8,43.05419577]
[1735517172072,0.4562,3356.1,3355.8,43.35272577]
[1735517172373,0.29853,3355.9,3355.8,43.05419577]
[1735517174666,0.4627,3356.3,3355.8,43.05419577]
[1735517174867,0.4627,3356.3,3355.9,2.25419577]
[1735517175071,3.50632,3356.0,3355.9,2.25419577]
[1735517175270,0.29852,3356.0,3355.9,2.25419577]
[1735517175473,0.29853,3355.9,3355.8,40.8]
[1735517176172,0.29855,3355.7,3355.6,2.25419577]
[1735517177672,0.29854,3355.8,3355.6,2.25419577]
[1735517177864,0.29854,3355.8,3355.6,2.55274577]
[1735517178269,0.4622,3356.1,3355.6,2.55274577]
[1735517178576,0.29855,3355.7,3355.6,2.55274577]
[1735517178772,0.29855,3355.7,3355.6,2.25419577]
[1735517179073,0.29855,3355.7,3355.6,2.55275577]
[1735517179975,0.29854,3355.8,3355.6,2.55275577]
[1735517180174,0.4622,3356.1,3355.6,2.25419577]
[1735517180472,0.29854,3355.8,3355.7,0.29855]
[1735517180679,0.29854,3355.8,3355.6,2.55274577]
[1735517181066,0.29855,3355.7,3355.6,2.55274577]
[1735517181271,0.29854,3355.8,3355.6,2.55274577]
[1735517181774,0.4622,3356.1,3356.0,0.29852]
[1735517182078,0.29846,3356.7,3356.0,3.00050577]
[1735517182284,0.29849,3356.4,3356.3,2.25419577]
[1735517183272,0.29854,3355.8,3355.7,5.46199577]
[1735517184880,0.29854,3355.8,3355.7,5.76054577]
[1735517185078,2.12034,3356.3,3355.7,5.76054577]
[1735517185267,0.29854,3355.8,3355.7,5.46199577]
[1735517185472,0.29854,3355.8,3355.7,5.76054577]
[1735517186883,0.29854,3355.9,3355.8,0.29854]
[1735517187077,2.12034,3356.3,3355.7,5.46199577]
[1735517187475,0.29854,3355.8,3355.7,5.46199577]
[1735517188576,0.29851,3356.2,3356.1,0.29851]
[1735517188877,3.2078,3356.4,3356.1,2.25419577]
[1735517189075,3.2078,3356.4,3356.3,0.29849]
[1735517189577,0.29847,3356.6,3356.5,0.29848]
[1735517189781,3.2078,3356.8,3356.2,0.438]
[1735517189980,0.29849,3356.4,3356.3,0.29849]
[1735517191078,0.4625,3356.6,3356.1,2.25419577]
[1735517191277,0.2985,3356.2,3356.1,2.25419577]
[1735517192479,0.2985,3356.2,3356.1,2.55270577]
[1735517193074,0.2985,3356.2,3356.1,2.25419577]
[1735517193685,0.2985,3356.2,3356.1,2.55270577]
[1735517194078,0.9206,3356.6,3356.1,2.25419577]
[1735517194279,0.29849,3356.4,3356.3,0.29849]
[1735517194778,0.4625,3356.6,3356.1,2.25419577]
[1735517195082,0.29849,3356.4,3356.3,0.29849]
[1735517195585,0.2985,3356.2,3356.1,2.25419577]
[1735517195881,0.2985,3356.2,3356.1,2.55270577]
[1735517198881,0.29853,3355.9,3355.8,2.55272577]
[1735517199080,0.4625,3356.6,3355.8,2.25419577]
[1735517199281,5.54327753,3357.3,3356.5,5.46199577]
[1735517199587,5.54327753,3357.3,3355.9,1.257]
[1735517199588,2.33547753,3357.3,3357.2,0.29841]
[1735517199782,2.33547753,3357.3,3357.2,41.09841]
[1735517200180,2.33547753,3357.3,3357.2,0.29841]
[1735517200584,0.2984,3357.3,3357.2,40.8]
[1735517200780,0.29842,3357.1,3357.0,5.46199577]
[1735517201180,0.29842,3357.1,3357.0,46.26199577]
[1735517201984,0.76282,3357.1,3357.0,46.26199577]
[1735517202685,0.29842,3357.1,3357.0,46.56042577]
[1735517202881,0.29842,3357.1,3357.0,46.26199577]
[1735517204486,0.29842,3357.1,3357.0,5.46199577]
[1735517204686,0.29842,3357.1,3357.0,2.25419577]
[1735517205984,0.4416,3357.2,3356.7,2.25419577]
[1735517206185,0.29845,3356.8,3356.7,2.25419577]
[1735517214391,0.75755,3356.8,3356.7,2.25419577]
[1735517219391,0.29845,3356.8,3356.7,2.25419577]
[1735517221693,0.29845,3356.8,3356.7,5.76044577]
[1735517221899,2.33547753,3357.2,3357.0,0.29843]
[1735517222107,2.63388753,3357.2,3357.1,2.69639577]
[1735517222400,2.63388753,3357.2,3357.1,3.14169577]
[1735517222794,0.29841,3357.3,3357.1,3.44011577]
[1735517223097,5.97267753,3357.8,3357.4,0.29839]
[1735517223299,2.33547753,3357.8,3357.6,3.2078]
[1735517223498,0.29838,3357.7,3357.6,3.2078]
[1735517225499,2.33547753,3358.2,3357.6,3.2078]
[1735517225703,2.63379753,3358.2,3358.1,2.25419577]
[1735517225896,0.29832,3358.2,3358.1,2.25419577]
[1735517232401,0.29836,3357.8,3357.7,2.25419577]
[1735517233104,0.75766,3357.8,3357.7,2.25419577]
[1735517235407,0.29836,3357.8,3357.7,2.25419577]
[1735517240309,0.29835,3357.9,3357.8,0.29836]
[1735517240507,0.29835,3357.9,3357.8,0.74476]
[1735517240714,0.29835,3357.9,3357.8,0.4464]
[1735517240911,0.4436,3358.2,3357.8,0.4464]
[1735517241110,0.29833,3358.2,3358.1,2.25419577]
[1735517244115,0.29833,3358.2,3358.1,2.55252577]
[1735517244516,0.29833,3358.2,3358.1,2.25419577]
[1735517245118,0.29833,3358.2,3358.1,43.05419577]
[1735517245617,0.29833,3358.2,3358.1,43.05229904]
[1735517246207,3.2078,3358.3,3357.7,4.57643636]
[1735517246208,0.29836,3357.8,3357.7,4.57643636]
[1735517246417,0.29836,3357.8,3357.7,6.83063213]
[1735517247322,0.29836,3357.8,3357.7,2.25419577]
[1735517248715,0.74306,3357.8,3357.7,2.25419577]
[1735517255522,0.4447,3357.8,3357.4,2.25419577]
[1735517255723,0.29839,3357.5,3357.4,2.25419577]
[1735517262530,2.33547753,3358.1,3357.4,7.25419577]
[1735517262828,2.33547753,3358.1,3358.0,5.76033577]
[1735517263037,2.63380753,3358.1,3358.0,5.46199577]
[1735517263235,2.63380753,3358.1,3358.0,46.26199577]
[1735517263929,0.29833,3358.1,3358.0,46.26199577]
[1735517264333,0.29833,3358.1,3358.0,46.56033577]
[1735517265734,0.29833,3358.1,3358.0,46.26199577]
[1735517266230,0.29833,3358.1,3358.0,46.56033577]
[1735517266941,0.29832,3358.3,3358.2,0.29832]
[1735517267133,0.4579,3358.5,3358.2,2.25419577]
[1735517267540,0.29832,3358.3,3358.2,2.25419577]
[1735517274648,2.8462641,3358.7,3358.2,7.25419577]
[1735517274846,5.75288671,3359.1,3359.0,0.29825]
[1735517275049,5.75288671,3359.1,3359.0,4.80664154]
[1735517275452,5.75288671,3359.1,3359.0,45.60664154]
[1735517276444,5.75288671,3359.1,3359.0,43.35244577]
[1735517276647,0.29824,3359.2,3359.0,47.98534942]
[1735517276953,0.29824,3359.2,3359.1,0.74574]
[1735517277844,0.29824,3359.2,3359.1,0.4475]
[1735517278052,0.29824,3359.2,3359.1,0.74574]
[1735517278253,3.50603,3359.3,3359.2,0.29824]
[1735517278549,3.50603,3359.3,3359.1,0.74574]
[1735517278550,0.29824,3359.2,3359.1,0.74574]
[1735517278747,0.4539,3359.7,3359.1,5.90949577]
[1735517278951,0.4539,3359.7,3359.6,2.25419577]
[1735517279153,0.75209,3359.7,3359.6,2.25419577]
[1735517280249,0.29822,3359.4,3359.3,2.25419577]
[1735517280446,0.4539,3359.7,3359.3,2.25419577]
[1735517280746,0.75209,3359.7,3359.6,2.25419577]
[1735517281348,0.75209,3359.7,3359.6,43.05419577]
[1735517281552,0.75209,3359.7,3359.6,2.25419577]
[1735517282243,0.4205,3359.8,3359.6,2.25419577]
[1735517282448,0.29819,3359.8,3359.7,0.29819]
[1735517283051,0.29819,3359.8,3359.6,2.25419577]
[1735517283250,0.29819,3359.7,3359.6,2.55239577]
[1735517283651,0.442,3360.2,3359.6,2.55239577]
[1735517283851,0.29819,3359.8,3359.7,0.29819]
[1735517284849,0.442,3360.2,3359.5,3.2078]
[1735517285052,0.29815,3360.2,3360.1,2.55234577]
[1735517285548,3.50594,3360.3,3360.2,0.29815]
[1735517286856,0.29815,3360.2,3360.1,2.55234577]
[1735517287055,3.2078,3360.3,3360.2,0.29815]
[1735517290659,1.21792,3360.6,3360.4,0.29812]
[1735517290858,1.21792,3360.6,3360.5,2.55231577]
[1735517291055,0.9198,3360.6,3360.5,2.55231577]
[1735517291258,0.9198,3360.6,3360.5,4.80651154]
[1735517291453,0.442,3361.0,3360.5,4.50839154]
[1735517291661,0.8618,3361.0,3360.9,2.55227577]
[1735517292063,0.8618,3361.0,3360.9,43.35227577]
[1735517294760,1.3187,3361.5,3361.4,0.29804]
[1735517294967,1.3187,3361.5,3361.4,2.55223577]
[1735517295755,1.3187,3361.5,3361.4,2.25419577]
[1735517295966,1.61673,3361.5,3361.4,2.25419577]
[1735517296269,1.3187,3361.5,3361.4,2.55223577]
[1735517301063,3.2078,3362.4,3362.3,0.29795]
[1735517301265,3.2078,3362.4,3362.3,2.55214577]
[1735517301266,4.5326,3362.4,3362.3,2.55214577]
[1735517301663,4.0866,3362.4,3362.3,43.35214577]
[1735517301868,0.8788,3362.4,3362.3,43.35214577]
[1735517302469,0.8788,3362.4,3362.3,2.55214577]
[1735517306467,0.446,3362.7,3362.6,0.29793]
[1735517306668,0.8862,3362.7,3362.6,0.29793]
[1735517307477,1.18412,3362.7,3362.6,2.25419577]
[1735517307772,1.60912,3362.7,3362.6,2.25419577]
[1735517308568,1.3112,3362.7,3362.6,2.55212577]
[1735517309775,1.60912,3362.7,3362.6,2.55212577]
[1735517310778,1.60912,3362.7,3362.6,2.25419577]
[1735517311079,0.29795,3362.4,3362.3,2.25419577]
[1735517311571,0.29795,3362.4,3362.3,2.55215577]
[1735517311776,1.3112,3362.7,3362.3,2.25419577]
[1735517311981,1.3112,3362.7,3362.6,2.25419577]
[1735517312166,1.60913,3362.7,3362.6,2.25419577]
[1735517312475,0.29795,3362.4,3362.3,2.25419577]
[1735517312873,0.29795,3362.4,3362.3,2.55215577]
[1735517313273,1.3112,3362.7,3362.3,2.25419577]
[1735517313478,0.29795,3362.5,3362.4,0.29795]
[1735517314286,0.29795,3362.5,3361.9,0.29799]
[1735517314287,0.29798,3362.1,3361.9,0.29799]
[1735517314578,0.8662,3362.0,3361.9,0.29799]
[1735517314766,1.3257,3362.0,3361.9,0.29799]
[1735517315472,0.298,3361.9,3361.6,2.25419577]
[1735517315770,3.50581,3361.7,3361.6,2.55221577]
[1735517315969,3.50581,3361.7,3361.6,0.29802]
[1735517316172,3.2078,3361.7,3361.6,0.29802]
[1735517316974,3.2078,3361.7,3361.5,0.29803]
[1735517316975,0.29803,3361.6,3361.5,0.29803]
[1735517317176,3.50582,3361.7,3361.6,0.29802]
[1735517317873,3.2078,3361.7,3361.3,2.25419577]
[1735517318873,0.29803,3361.6,3361.5,0.29803]
[1735517319381,0.29804,3361.5,3361.4,0.29803]
[1735517319581,3.2078,3361.7,3361.3,2.25419577]
[1735517319879,3.2078,3361.7,3361.6,2.55221577]
[1735517320074,1.3257,3362.0,3361.6,2.25419577]
[1735517320277,0.29803,3361.6,3361.5,0.29803]
[1735517320473,0.29983801,3361.6,3361.5,0.29803]
[1735517320978,0.00180801,3361.6,3361.5,0.29803]
[1735517323484,3.2078,3362.2,3362.1,0.29798]
[1735517323685,0.29796,3362.4,3362.2,0.29797]
[1735517323981,3.2078,3362.6,3362.5,0.29794]
[1735517324184,3.2078,3362.6,3362.5,41.09794]
[1735517324588,3.2078,3362.6,3362.5,41.54984]
[1735517324881,3.2078,3362.6,3362.5,41.09794]
[1735517325084,3.2078,3362.6,3362.5,0.29794]
[1735517331285,0.29792,3362.8,3362.6,0.29793]
[1735517331579,0.29792,3362.8,3362.4,2.25419577]
[1735517331887,0.29792,3362.8,3362.7,2.55212577]
[1735517332786,0.29792,3362.8,3362.7,2.25419577]
[1735517332992,7.83906305,3363.8,3362.7,7.71619154]
[1735517333287,7.83906305,3363.8,3362.4,1.232]
[1735517333288,7.83906305,3363.8,3363.7,0.29784]
[1735517334480,4.63126305,3363.8,3363.7,0.29784]
[1735517334985,0.4563,3363.9,3363.6,2.25419577]
[1735517335182,0.75412,3363.9,3363.7,0.29783]
[1735517336986,0.4563,3363.9,3363.8,0.29783]
[1735517337284,0.4563,3363.9,3363.6,2.25419577]
[1735517337488,0.75412,3363.9,3363.7,0.29784]
[1735517337888,0.75412,3363.9,3363.6,2.55203577]
[1735517337889,0.29783,3363.8,3363.6,2.55203577]
[1735517338187,0.29784,3363.7,3363.6,2.25419577]
[1735517340790,0.29784,3363.7,3363.6,2.55204577]
[1735517340990,0.29784,3363.7,3363.6,2.25419577]
[1735517341492,0.29786,3363.4,3363.3,2.55206577]
[1735517341989,0.8969,3363.6,3363.1,3.2078]
[1735517341990,0.29788,3363.2,3363.1,3.2078]
[1735517342191,3.2078,3363.2,3362.9,0.2979]
[1735517342492,3.2078,3363.2,3362.7,2.25419577]
[1735517342493,0.2979,3363.1,3362.7,2.25419577]
[1735517342992,0.2979,3363.0,3362.8,0.29791]
[1735517343200,0.4403,3362.9,3362.8,0.29791]
[1735517344496,3.2078,3363.2,3363.1,0.29789]
[1735517344696,3.2078,3363.2,3363.1,2.55208577]
[1735517347601,3.50568,3363.2,3363.1,2.25419577]
[1735517350211,3.2078,3363.2,3363.1,2.55208577]
[1735517350507,3.50568,3363.2,3363.1,2.55208577]
[1735517351016,0.29791,3362.9,3362.7,0.29792]
[1735517351197,0.4272,3362.8,3362.7,0.29792]
[1735517351800,0.4272,3362.8,3362.6,2.25419577]
[1735517352001,0.29792,3362.7,3362.6,2.25419577]
[1735517352203,1.22192,3362.7,3362.6,2.25419577]
[1735517353303,4.1318,3362.7,3362.3,2.25419577]
[1735517353606,4.1318,3362.7,3362.0,0.4227]
[1735517353607,3.6703,3362.7,3362.6,2.25419577]
[1735517353811,3.6703,3362.7,3362.6,2.55212577]
[1735517354398,3.2078,3362.7,3362.6,2.55212577]
[1735517355202,3.2078,3362.7,3362.6,43.35212577]
[1735517357512,3.2078,3362.7,3362.6,43.81112577]
[1735517359408,3.2078,3363.3,3362.6,43.51319577]
[1735517359606,0.2979,3363.1,3363.0,2.25419577]
[1735517360107,0.29789,3363.2,3363.0,2.55208577]
[1735517360304,0.29789,3363.1,3363.0,2.55208577]
[1735517360709,3.2078,3363.3,3363.0,2.55208577]
[1735517361013,0.29789,3363.2,3363.0,2.55208577]
[1735517361709,3.2078,3363.3,3363.0,2.55208577]
[1735517361908,0.29788,3363.2,3363.0,2.25419577]
[1735517362213,0.29788,3363.2,3363.0,2.55208577]
[1735517362407,0.29788,3363.2,3363.0,2.25419577]
[1735517362601,0.29788,3363.2,3363.0,2.55208577]
[1735517363514,3.2078,3363.3,3363.0,2.25419577]
[1735517363710,0.29789,3363.1,3363.0,2.25419577]
[1735517364109,3.2078,3363.3,3363.0,2.25419577]
[1735517364310,0.29789,3363.2,3363.0,2.55208577]
[1735517364517,3.2078,3363.3,3363.0,2.55208577]
[1735517364717,0.29788,3363.2,3363.0,2.55208577]
[1735517365519,3.2078,3363.3,3363.0,2.55208577]
[1735517365722,0.29788,3363.2,3363.0,2.55208577]
[1735517366012,0.29789,3363.1,3363.0,2.55208577]
[1735517366220,3.2078,3363.3,3363.0,2.25419577]
[1735517366221,0.29789,3363.2,3363.0,2.25419577]
[1735517366423,0.29789,3363.1,3363.0,2.55208577]
[1735517367414,0.29789,3363.1,3363.0,2.25419577]
[1735517368016,0.29789,3363.1,3363.0,2.55209577]
[1735517371224,0.29789,3363.1,3363.0,2.25419577]
[1735517371424,0.29789,3363.1,3363.0,2.55209577]
[1735517371925,0.29789,3363.1,3363.0,2.25419577]
[1735517372823,3.2078,3363.3,3362.6,49.06620986]
[1735517373120,0.29792,3362.8,3362.7,0.29792]
[1735517374421,3.49942088,3363.4,3362.8,0.7448]
[1735517374616,3.49942088,3363.4,3363.3,0.29787]
[1735517374821,4.6658945,3363.4,3363.3,0.29787]
[1735517375326,4.6658945,3363.4,3363.3,41.09787]
[1735517376731,0.4555,3363.7,3363.6,0.29785]
[1735517378223,0.4208,3364.1,3364.0,0.29781]
[1735517378224,0.71861,3364.1,3364.0,0.29781]
[1735517378626,0.71861,3364.1,3364.0,2.55200577]
[1735517378820,6.71569837,3364.4,3364.3,0.29778]
[1735517379022,6.71569837,3364.4,3364.3,2.55197577]
[1735517379424,3.2078,3364.4,3364.3,2.55197577]
[1735517383332,5.83236813,3365.2,3364.5,0.74441]
[1735517383527,5.83236813,3365.2,3364.9,2.55192577]
[1735517383528,0.42068291,3365.0,3364.9,2.55192577]
[1735517384330,0.4397,3365.5,3365.4,0.29769]
[1735517384532,0.4397,3365.5,3365.4,2.55188577]
[1735517384728,0.4397,3365.5,3365.4,2.25419577]
[1735517384931,0.73738,3365.5,3365.4,2.25419577]
[1735517385127,0.73738,3365.5,3365.3,3.50549]
[1735517385431,0.4397,3365.5,3365.4,2.25419577]
[1735517386733,0.73738,3365.5,3365.4,2.25419577]
[1735517388935,0.73738,3365.5,3365.3,3.2078]
[1735517389139,0.73738,3365.5,3365.4,2.25419577]
[1735517390131,0.8551,3365.8,3365.4,2.25419577]
[1735517390328,3.2078,3366.3,3365.7,2.25419577]
[1735517390531,3.50541,3366.3,3366.2,2.25419577]
[1735517390726,0.8608,3366.4,3366.2,2.25419577]
[1735517390931,0.8608,3366.4,3366.3,0.29761]
[1735517391135,0.8608,3366.4,3366.2,5.46199577]
[1735517391532,0.8608,3366.4,3366.2,5.75960577]
[1735517391838,0.8608,3366.4,3366.3,0.29761]
[1735517392032,3.2078,3367.2,3366.2,5.46199577]
[1735517392233,0.29754,3367.1,3367.0,2.25419577]
[1735517392438,3.2078,3367.2,3366.2,3.2078]
[1735517392439,0.29757,3366.8,3366.2,3.2078]
[1735517392731,0.29756,3366.9,3366.5,0.29759]
[1735517392936,0.29756,3366.9,3366.8,2.25419577]
[1735517393237,1.17756,3366.9,3366.8,2.25419577]
[1735517394735,0.29759,3366.6,3366.5,2.25419577]
[1735517394935,0.29761,3366.3,3366.2,5.46199577]
[1735517395131,0.29761,3366.3,3366.2,3.2078]
[1735517395338,0.29761,3366.3,3366.2,5.46199577]
[1735517395832,0.29761,3366.3,3366.2,2.25419577]
[1735517396138,0.29762,3366.2,3366.0,0.29763]
[1735517396338,0.29762,3366.2,3366.1,2.25419577]
[1735517397233,0.29764,3365.9,3365.8,5.46199577]
[1735517400242,0.29764,3365.9,3365.8,2.25419577]
[1735517402136,0.29768,3365.6,3365.5,2.25419577]
[1735517402739,0.29766,3365.7,3365.5,2.25419577]